bitfinex/quotes_ETHUSD_20250411
["timestamp","ask_amount","ask_price","bid_price","bid_amount"]
[1744329990323,6.58001,1519.8,1519.6,0.64297342]
[1744329990480,7.34958,1520.1,1519.8,3.0]
[1744329990678,7.14,1520.3,1519.8,9.95267]
[1744329990888,6.57883,1520.1,1519.9,0.31226532]
[1744329991119,13.71781,1520.3,1520.0,6.57893]
[1744329991435,13.71781,1520.3,1520.1,0.31226532]
[1744329991819,13.71781,1520.3,1520.0,0.48636411]
[1744329991978,6.57809,1520.2,1520.1,0.31226532]
[1744329992184,6.57809,1520.2,1519.9,3.0]
[1744329992499,6.57809,1520.2,1520.1,0.31226532]
[1744329992704,6.57853,1520.1,1519.9,3.0]
[1744329992921,6.57853,1520.1,1519.9,3.995285]
[1744329993603,6.57809,1520.2,1519.9,10.574595]
[1744329993802,13.71774,1520.3,1519.9,17.153825]
[1744329994003,13.71774,1520.3,1520.1,3.0]
[1744329994004,6.57774,1520.3,1520.1,3.0]
[1744329994213,0.1,1520.4,1520.2,3.0]
[1744329994379,0.1,1520.4,1520.3,9.95084]
[1744329994584,0.1,1520.4,1520.3,11.603714]
[1744329998232,0.1,1520.4,1520.3,5.026074]
[1744329998415,0.1,1520.4,1520.3,3.3732]
[1744329998721,0.1,1520.4,1520.3,9.95084]
[1744329999326,0.1,1520.4,1520.3,3.3732]
[1744329999714,0.1,1520.4,1520.3,9.95084]
[1744330000423,0.1,1520.4,1520.3,3.3732]
[1744330001091,0.1,1520.4,1520.3,3.0]
[1744330001833,0.1,1520.4,1520.3,9.57764]
[1744330002005,0.1,1520.4,1520.3,10.535431]
[1744330003445,0.1,1520.4,1520.3,10.83615504]
[1744330003625,0.1,1520.4,1520.3,4.25851504]
[1744330003950,0.1,1520.4,1520.3,3.30072404]
[1744330005035,6.67721,1520.4,1520.3,3.30072404]
[1744330010150,6.67721,1520.4,1520.3,0.30072404]
[1744330010345,6.57851,1520.1,1519.8,6.57979]
[1744330010549,6.57896,1520.0,1519.9,0.30362791]
[1744330010752,7.37741,1520.1,1519.7,7.58647278]
[1744330010928,6.58016,1519.8,1519.5,0.3732]
[1744330011127,6.58016,1519.8,1519.6,3.0]
[1744330011853,13.15891,1519.9,1519.6,3.0]
[1744330013649,6.57983,1519.8,1519.6,3.0]
[1744330013972,6.57983,1519.8,1519.5,3.3732]
[1744330014719,6.57983,1519.8,1519.5,3.0]
[1744330014720,13.15987,1519.8,1519.5,3.0]
[1744330014957,13.1616,1519.6,1519.4,7.095]
[1744330015121,13.1616,1519.6,1519.3,0.3732]
[1744330015122,6.58067,1519.6,1519.3,0.3732]
[1744330015527,7.37898,1519.7,1519.4,3.0]
[1744330015925,7.35865,1519.9,1519.5,3.0]
[1744330016224,13.15835,1520.0,1519.6,6.5805]
[1744330016655,6.5791,1520.0,1519.6,13.16098]
[1744330017159,6.5791,1520.0,1519.7,3.0]
[1744330017456,6.57853,1520.1,1519.9,3.0]
[1744330017670,13.15728,1520.1,1519.9,3.0]
[1744330017865,6.57894,1520.0,1519.9,3.0]
[1744330018065,6.57981,1519.8,1519.5,3.3732]
[1744330018266,13.15996,1519.8,1519.5,3.3732]
[1744330018454,6.58024,1519.7,1519.6,0.30645433]
[1744330018840,6.5807,1519.6,1519.4,3.0]
[1744330019164,7.3599,1519.6,1519.5,0.30653286]
[1744330019379,6.58227,1519.3,1519.0,7.4702]
[1744330019536,6.58247,1519.2,1519.1,0.30818224]
[1744330020156,6.58161,1519.4,1519.1,3.30818224]
[1744330020776,6.58241,1519.2,1519.1,0.30818224]
[1744330020954,6.5839,1518.9,1518.7,7.097]
[1744330021268,6.5839,1518.9,1518.6,21.57384883]
[1744330021269,6.58457,1518.7,1518.6,21.57384883]
[1744330021440,6.58432,1518.8,1518.6,21.57384883]
[1744330021953,7.36377,1518.7,1518.6,21.57384883]
[1744330022769,6.58524,1518.6,1518.3,3.0]
[1744330022944,6.58524,1518.6,1518.3,3.48398241]
[1744330023273,6.5872,1518.1,1517.9,21.57384883]
[1744330023476,6.58701,1518.2,1517.9,21.57384883]
[1744330023766,6.58701,1518.2,1518.0,3.0]
[1744330024070,6.58719,1518.1,1517.9,21.57384883]
[1744330024269,6.58761,1518.0,1517.9,21.57384883]
[1744330025534,7.36598,1518.2,1517.9,21.57384883]
[1744330025770,0.7792,1518.2,1517.9,28.16187883]
[1744330026069,0.7792,1518.2,1517.9,11.85580261]
[1744330026269,0.7792,1518.2,1517.9,6.58803]
[1744330026571,0.7792,1518.2,1517.9,9.58804]
[1744330026738,0.7792,1518.5,1518.0,3.0]
[1744330026934,0.7792,1518.5,1518.3,3.0]
[1744330027159,6.58502,1518.6,1518.4,0.3046837]
[1744330027466,7.3638,1518.7,1518.3,9.58605]
[1744330027669,0.7792,1518.7,1518.4,6.58585]
[1744330027974,6.58535,1518.6,1518.4,0.30397699]
[1744330028174,6.58693,1518.2,1518.0,3.0]
[1744330028331,6.58693,1518.2,1518.1,0.30389847]
[1744330028531,0.7792,1518.3,1518.1,3.0]
[1744330028738,0.7792,1518.3,1518.2,0.30201432]
[1744330029158,0.7792,1518.3,1518.1,9.58715]
[1744330029441,0.7792,1518.3,1518.2,0.30311334]
[1744330029631,0.7792,1518.3,1518.1,9.58714]
[1744330029835,0.7792,1518.3,1518.2,0.30311334]
[1744330030673,0.7792,1518.3,1518.1,9.58714]
[1744330030870,0.7792,1518.3,1518.2,0.30311334]
[1744330031076,0.7502,1518.6,1518.3,6.58625]
[1744330031280,0.7502,1518.6,1518.3,13.17233]
[1744330031574,0.7502,1518.6,1518.4,6.88967995]
[1744330031743,7.33445,1518.8,1518.4,13.47532995]
[1744330031949,0.7502,1518.8,1518.5,6.5852]
[1744330032177,0.7502,1518.8,1518.6,0.30334886]
[1744330033141,6.58457,1518.7,1518.6,0.30334886]
[1744330033344,6.58536,1518.6,1518.3,3.0]
[1744330033675,6.58536,1518.6,1518.4,0.30130792]
[1744330034073,6.58651,1518.3,1517.8,13.02168]
[1744330034281,7.33609,1518.4,1517.8,0.3732]
[1744330034477,13.1728,1518.3,1517.8,13.54982]
[1744330034643,13.1728,1518.3,1517.9,3.0]
[1744330034841,0.55,1518.2,1517.6,7.4622]
[1744330035040,6.5874,1518.1,1517.6,7.94583844]
[1744330035234,0.7502,1518.0,1517.6,7.089]
[1744330035572,0.7502,1518.0,1517.6,6.58934]
[1744330035573,7.33817,1518.0,1517.6,6.58934]
[1744330035742,0.7502,1518.0,1517.6,6.5892]
[1744330035945,6.58725,1518.1,1517.8,6.58847]
[1744330036270,6.58669,1518.3,1517.8,0.3732]
[1744330036502,14.42608,1518.4,1517.8,0.3732]
[1744330036503,7.8402,1518.4,1517.8,6.96164]
[1744330036679,6.58659,1518.3,1517.9,6.58789]
[1744330036842,6.58659,1518.3,1517.8,6.96161]
[1744330036843,6.58743,1518.1,1517.8,3.0]
[1744330037242,6.58779,1518.0,1517.8,3.0]
[1744330037468,6.58834,1517.9,1517.5,6.58971]
[1744330037951,6.58871,1517.8,1517.4,20.64356]
[1744330038153,6.58871,1517.8,1517.5,3.0]
[1744330038339,9.205572,1518.0,1517.2,0.3732]
[1744330038676,6.59009,1517.5,1517.1,63.00645]
[1744330038879,6.59009,1517.5,1517.0,20.11495]
[1744330038880,6.59088,1517.3,1517.0,0.86710966]
[1744330039180,6.59118,1517.2,1516.9,6.59234]
[1744330039548,6.59118,1517.2,1517.0,3.0]
[1744330040885,0.7502,1517.4,1516.8,3.3732]
[1744330041086,0.7502,1517.4,1517.1,13.18298]
[1744330041399,6.58942,1517.6,1517.2,9.59089]
[1744330041581,6.58942,1517.6,1517.2,9.96409]
[1744330041894,6.58942,1517.6,1517.2,9.96408]
[1744330042096,6.58942,1517.6,1517.3,6.59064]
[1744330042257,7.33915,1517.7,1517.3,6.59064]
[1744330042258,7.33915,1517.7,1517.3,13.18128]
[1744330042459,13.92841,1517.7,1517.3,6.59064]
[1744330042692,7.33915,1517.7,1517.3,14.836559]
[1744330042897,13.92839,1517.7,1517.3,8.245919]
[1744330043797,7.33915,1517.7,1517.3,14.836349]
[1744330044094,13.92649,1517.9,1517.5,9.58973]
[1744330044293,6.58892,1517.7,1517.5,3.0]
[1744330044667,6.58863,1517.8,1517.2,3.3732]
[1744330044668,6.58992,1517.5,1517.2,3.3732]
[1744330044873,0.55,1517.8,1517.2,3.3732]
[1744330045064,6.59022,1517.4,1517.2,3.0]
[1744330045263,6.59085,1517.3,1517.0,3.85664087]
[1744330045460,6.59085,1517.3,1517.0,10.44858087]
[1744330045702,6.59022,1517.4,1517.0,10.44842087]
[1744330046070,6.59022,1517.4,1517.0,17.04017087]
[1744330046267,6.59022,1517.4,1517.2,3.0]
[1744330046798,7.34006,1517.5,1517.2,3.0]
[1744330046997,6.58993,1517.5,1517.2,3.0]
[1744330047600,6.59081,1517.3,1517.0,3.3732]
[1744330047809,13.18174,1517.3,1517.0,3.3732]
[1744330047974,13.18174,1517.3,1516.9,13.68523]
[1744330047975,6.5911,1517.2,1516.9,14.17669241]
[1744330048173,6.59036,1517.4,1517.1,3.0]
[1744330048377,13.98403,1517.6,1517.2,13.8468093]
[1744330048705,7.093,1517.8,1517.5,3.0]
[1744330048706,13.17727,1517.8,1517.5,3.0]
[1744330048881,8.9174712,1517.9,1517.5,3.0]
[1744330049203,0.805,1518.1,1517.6,0.29611211]
[1744330049378,6.58872,1517.8,1517.6,0.29611211]
[1744330049579,13.17757,1517.8,1517.6,0.29611211]
[1744330050011,6.58776,1518.0,1517.7,3.0]
[1744330050303,7.39239,1518.1,1517.7,6.58876]
[1744330050304,6.58722,1518.1,1517.7,6.58876]
[1744330050474,6.58762,1518.0,1517.8,0.29249645]
[1744330050677,6.58762,1518.0,1517.7,6.58882]
[1744330050994,7.245972,1518.1,1517.7,13.17755]
[1744330051192,6.58679,1518.2,1517.8,0.29249645]
[1744330051517,6.58804,1517.9,1517.8,0.29249645]
[1744330052004,13.17651,1517.9,1517.8,0.29139647]
[1744330052215,6.58999,1517.5,1517.3,6.4332]
[1744330052516,6.58999,1517.5,1517.4,0.29139647]
[1744330052801,6.58999,1517.5,1517.3,3.3732]
[1744330053012,13.17903,1517.6,1517.4,0.29139647]
[1744330053172,13.17903,1517.6,1517.3,3.3732]
[1744330053371,6.58941,1517.6,1517.4,0.29139647]
[1744330053607,6.58941,1517.6,1517.3,9.96369]
[1744330053813,6.58941,1517.6,1517.4,0.29139647]
[1744330054112,6.58941,1517.6,1517.3,9.96369]
[1744330054295,6.58941,1517.6,1517.5,0.29139647]
[1744330054496,6.58941,1517.6,1517.3,9.96369]
[1744330054694,6.58941,1517.6,1517.5,0.29139647]
[1744330054897,6.58941,1517.6,1517.3,9.96369]
[1744330055098,6.58941,1517.6,1517.5,0.29139647]
[1744330055298,6.58941,1517.6,1517.3,9.96369]
[1744330055502,12.74723,1518.1,1517.6,0.3732]
[1744330055687,13.17472,1518.1,1517.8,3.0]
[1744330055888,0.805,1518.2,1517.9,6.58776]
[1744330056196,6.58635,1518.3,1518.0,9.88117654]
[1744330056404,7.39094,1518.4,1518.0,16.84182654]
[1744330056711,2.912041,1518.4,1518.0,3.66679654]
[1744330056914,6.58679,1518.2,1518.0,3.66679654]
[1744330057212,6.58646,1518.3,1518.0,3.66679654]
[1744330057510,6.58708,1518.2,1518.0,3.29359654]
[1744330058097,6.58638,1518.3,1518.0,3.29359654]
[1744330058300,6.58638,1518.3,1518.0,9.88117654]
[1744330058487,13.97696,1518.4,1518.0,9.88117654]
[1744330059124,6.587,1518.2,1518.0,3.29359654]
[1744330059297,2.912096,1518.4,1518.0,3.29359654]
[1744330059483,6.58702,1518.2,1518.0,3.29359654]
[1744330059898,6.58718,1518.1,1518.0,3.29359654]
[1744330060215,6.58718,1518.1,1518.0,0.29359654]
[1744330060518,6.58718,1518.1,1517.8,9.96167]
[1744330060721,6.58718,1518.1,1518.0,0.28982478]
[1744330060884,6.58781,1518.0,1517.7,3.0]
[1744330061213,14.491995,1518.1,1517.7,9.5887]
[1744330061414,6.58818,1517.9,1517.6,3.86802286]
[1744330061581,6.58818,1517.9,1517.6,0.3732]
[1744330061781,6.58869,1517.8,1517.5,3.0]
[1744330062018,6.58804,1517.9,1517.5,11.245065]
[1744330062189,13.96844,1518.0,1517.7,3.0]
[1744330062722,7.38068,1518.0,1517.7,3.0]
[1744330063409,7.38068,1518.0,1517.8,0.29068893]
[1744330063713,13.96851,1518.0,1517.8,0.29068893]
[1744330063917,6.58804,1517.9,1517.8,0.29068893]
[1744330064497,6.58912,1517.7,1517.5,0.50361049]
[1744330064700,6.58943,1517.6,1517.4,3.0]
[1744330065426,6.589,1517.7,1517.4,3.0]
[1744330065590,13.17819,1517.7,1517.4,3.0]
[1744330065790,6.589,1517.7,1517.4,3.49225568]
[1744330066126,6.589,1517.7,1517.4,5.99383838]
[1744330066294,6.58954,1517.6,1517.4,3.0]
[1744330066520,6.58978,1517.5,1517.4,3.0]
[1744330066714,6.58954,1517.6,1517.3,1.70411137]
[1744330066906,6.58954,1517.6,1517.4,3.0]
[1744330067103,6.58999,1517.5,1517.3,3.0]
[1744330067301,6.58999,1517.5,1517.2,0.3732]
[1744330067596,6.58999,1517.5,1517.3,3.0]
[1744330067828,7.38237,1517.6,1517.3,3.0]
[1744330068128,13.17726,1517.8,1517.4,6.59005]
[1744330068427,6.58854,1517.8,1517.4,13.6672328]
[1744330068724,13.17724,1517.8,1517.4,8.44390608]
[1744330069022,6.58961,1517.6,1517.3,3.0]
[1744330069208,6.58901,1517.7,1517.4,3.0]
[1744330070015,6.58936,1517.6,1517.4,3.0]
[1744330070216,6.58901,1517.7,1517.4,3.0]
[1744330070738,6.5895,1517.6,1517.4,3.0]
[1744330070933,6.58901,1517.7,1517.4,3.0]
[1744330071230,6.58855,1517.8,1517.4,8.70107623]
[1744330071425,13.17723,1517.8,1517.4,15.29108623]
[1744330071634,6.58911,1517.7,1517.4,2.11116623]
[1744330071802,6.58911,1517.7,1517.4,0.49307923]
[1744330072129,6.58911,1517.7,1517.3,9.59052]
[1744330072327,6.58911,1517.7,1517.4,6.59005]
[1744330072533,6.58911,1517.7,1517.4,13.18009]
[1744330072708,6.58911,1517.7,1517.4,8.208049]
[1744330072905,6.59005,1517.5,1517.2,0.3732]
[1744330073109,6.59023,1517.4,1517.2,0.3732]
[1744330073316,6.59005,1517.5,1517.2,0.3732]
[1744330073835,6.58905,1517.7,1517.2,0.85995771]
[1744330074003,6.59046,1517.4,1517.2,0.3732]
[1744330074200,6.59125,1517.2,1516.7,0.3732]
[1744330074503,6.59157,1517.1,1516.7,0.3732]
[1744330074719,7.38423,1517.2,1516.9,3.0]
[1744330074906,6.59068,1517.3,1516.9,9.59229]
[1744330075121,7.38322,1517.4,1517.1,6.59139]
[1744330075327,13.17978,1517.5,1517.1,6.59139]
[1744330075642,6.58985,1517.5,1517.1,13.18276]
[1744330075841,13.17989,1517.5,1517.1,6.59137]
[1744330076137,8.041325,1517.6,1517.2,9.59091]
[1744330076435,0.7814,1517.8,1517.4,0.3732]
[1744330076638,7.36906,1518.0,1517.7,3.0]
[1744330076804,7.36903,1518.0,1517.7,9.58872]
[1744330077006,13.95688,1518.0,1517.7,3.0]
[1744330077343,13.52827,1518.2,1517.7,10.921006]
[1744330077545,10.34985099,1517.9,1517.8,9.58831]
[1744330077939,10.34985099,1517.9,1517.8,3.26723199]
[1744330078516,16.93789099,1517.9,1517.8,3.26723199]
[1744330078920,6.58853,1517.8,1517.5,3.3732]
[1744330079145,6.58853,1517.8,1517.5,5.745446]
[1744330079314,6.58853,1517.8,1517.6,0.2652716]
[1744330080132,0.8331,1517.8,1517.6,0.2652716]
[1744330080315,6.58891,1517.7,1517.6,0.2652716]
[1744330080718,6.58891,1517.7,1517.5,3.0]
[1744330080950,6.58809,1517.9,1517.6,0.26574203]
[1744330081250,6.58719,1518.1,1517.7,6.96206]
[1744330081449,7.41989,1518.2,1517.9,9.58804]
[1744330081751,0.8331,1518.4,1518.0,0.26652617]
[1744330081917,20.16392,1518.6,1518.2,6.58662]
[1744330082117,16.020312,1518.6,1518.2,6.58662]
[1744330082347,12.65886042,1518.5,1518.3,13.17245]
[1744330082544,12.65886042,1518.5,1518.3,13.43889775]
[1744330082745,12.65886042,1518.5,1518.4,3.0]
[1744330083051,12.65886042,1518.5,1518.4,3.25868557]
[1744330083252,12.65886042,1518.5,1518.4,3.0]
[1744330083625,12.65886042,1518.5,1518.4,3.25860719]
[1744330084250,12.65886042,1518.5,1518.4,10.94354572]
[1744330084451,12.65886042,1518.5,1518.4,3.25680475]
[1744330084452,6.58544,1518.5,1518.4,3.25680475]
[1744330084756,6.58436,1518.8,1518.4,3.25680475]
[1744330084962,6.58488,1518.7,1518.4,3.25680475]
[1744330085117,6.58544,1518.5,1518.4,0.25680475]
[1744330085310,6.58519,1518.6,1518.4,0.25680475]
[1744330085550,6.58519,1518.6,1518.2,9.95991]
[1744330085750,6.58519,1518.6,1518.5,0.25649134]
[1744330085955,6.58457,1518.7,1518.2,0.3732]
[1744330086258,6.58606,1518.4,1518.1,3.49239256]
[1744330086568,6.58632,1518.3,1518.1,3.0]
[1744330086915,13.17123,1518.5,1518.1,10.07985883]
[1744330087157,13.17124,1518.5,1518.2,1.00798588]
[1744330087341,6.58588,1518.4,1518.2,1.00798588]
[1744330087514,6.58588,1518.4,1518.1,3.49268883]
[1744330088117,6.58473,1518.7,1518.1,0.49268883]
[1744330088456,6.58674,1518.2,1518.0,3.3732]
[1744330088659,6.58636,1518.3,1518.0,3.3732]
[1744330088822,6.58677,1518.2,1518.0,3.3732]
[1744330089159,13.17379,1518.2,1518.0,1.42742]
[1744330089325,6.58677,1518.2,1518.0,1.42742]
[1744330089531,6.58718,1518.1,1518.0,4.42742]
[1744330089714,6.58761,1518.0,1517.9,7.65418345]
[1744330089919,6.58804,1517.9,1517.8,0.3732]
[1744330090220,6.58804,1517.9,1517.6,7.5372]
[1744330090221,6.58863,1517.8,1517.6,7.5372]
[1744330090630,6.58863,1517.8,1517.7,3.0]
[1744330091235,6.58809,1517.9,1517.7,3.0]
[1744330091850,6.58848,1517.8,1517.7,3.0]
[1744330092052,6.58848,1517.8,1517.5,4.0169]
[1744330092355,6.58978,1517.5,1517.3,7.164]
[1744330092519,6.58978,1517.5,1517.4,3.0]
[1744330092867,13.17983,1517.5,1517.3,7.6639967]
[1744330093234,6.58978,1517.5,1517.4,3.0]
[1744330093434,6.58978,1517.5,1517.4,3.19896499]
[1744330095175,0.7558,1517.8,1517.4,3.19896499]
[1744330095474,6.58935,1517.6,1517.4,3.19896499]
[1744330095633,6.58806,1517.9,1517.4,3.19896499]
[1744330095634,13.1764,1517.9,1517.6,0.3732]
[1744330095834,0.7558,1518.0,1517.7,3.20600791]
[1744330095835,13.17554,1518.0,1517.7,3.20600791]
[1744330096134,16.34354057,1518.3,1517.8,0.3732]
[1744330096358,16.34354057,1518.3,1517.9,16.17565]
[1744330096533,16.34354057,1518.3,1518.0,1.617565]
[1744330096733,9.75721057,1518.3,1518.1,3.0]
[1744330097240,9.75721057,1518.3,1518.2,0.20600791]
[1744330097464,9.75721057,1518.3,1518.1,9.58698]
[1744330097665,9.75721057,1518.3,1518.2,0.20600791]
[1744330097864,9.75721057,1518.3,1518.2,1.01661879]
[1744330098065,9.75721057,1518.3,1518.2,6.58674]
[1744330098365,6.58509,1518.6,1518.2,16.37926791]
[1744330098532,6.58567,1518.5,1518.2,3.20600791]
[1744330098738,7.34044,1518.7,1518.3,9.58611]
[1744330099071,16.34045057,1519.1,1518.7,9.58437]
[1744330099374,9.75721057,1519.1,1518.9,3.0]
[1744330099726,13.16682,1519.0,1518.7,4.616896]
[1744330099930,6.58327,1519.0,1518.7,3.0]
[1744330100175,9.75721057,1519.1,1518.8,3.0]
[1744330100330,9.75721057,1519.1,1518.8,9.58413]
[1744330100531,16.34007057,1519.1,1518.8,11.200981]
[1744330100740,9.75721057,1519.1,1518.8,4.616851]
[1744330100941,9.75721057,1519.1,1519.0,9.58327]
[1744330101246,9.75721057,1519.1,1519.0,3.0]
[1744330101441,6.58398,1518.9,1518.7,0.3732]
[1744330101669,9.75721057,1519.1,1518.8,3.0]
[1744330101984,9.75721057,1519.1,1519.0,3.0]
[1744330102167,9.75721057,1519.1,1519.0,10.914811]
[1744330102759,6.58029,1519.7,1519.4,3.0]
[1744330102959,13.1608,1519.7,1519.4,3.0]
[1744330103279,13.1608,1519.7,1519.1,6.58251]
[1744330103280,6.58029,1519.7,1519.2,9.58228]
[1744330103447,6.58029,1519.7,1519.4,3.0]
[1744330103649,6.58133,1519.5,1519.2,3.0]
[1744330103848,6.58133,1519.5,1519.2,3.48512327]
[1744330104488,6.58111,1519.5,1519.2,3.48512327]
[1744330104890,6.58024,1519.7,1519.0,1.331541]
[1744330105050,6.58226,1519.3,1519.0,3.3732]
[1744330105564,13.16457,1519.3,1519.0,3.3732]
[1744330105756,6.58284,1519.1,1518.9,7.163]
[1744330105951,6.58284,1519.1,1518.9,7.66123725]
[1744330106150,6.58284,1519.1,1519.0,3.0]
[1744330106452,6.58244,1519.2,1519.0,3.0]
[1744330106986,6.58284,1519.1,1519.0,3.0]
[1744330107189,13.16595,1519.1,1518.9,7.163]
[1744330107355,6.58245,1519.2,1518.8,3.3732]
[1744330107554,6.58024,1519.7,1519.1,3.0]
[1744330107754,6.58104,1519.6,1519.3,3.0]
[1744330107951,6.5803,1519.7,1519.4,3.0]
[1744330108168,7.38383,1519.9,1519.6,3.0]
[1744330108589,6.57814,1520.2,1519.8,3.0]
[1744330108788,6.57814,1520.2,1519.8,10.537529]
[1744330108996,13.15652,1520.2,1519.9,0.18001283]
[1744330109207,6.57894,1520.0,1519.9,0.18001283]
[1744330109670,6.58008,1519.8,1519.6,3.0]
[1744330109873,6.58008,1519.8,1519.4,0.86162049]
[1744330110185,6.58106,1519.6,1519.5,0.18001283]
[1744330110572,13.16212,1519.6,1519.2,3.3732]
[1744330110774,6.58124,1519.5,1519.2,3.3732]
[1744330110974,6.58197,1519.3,1519.2,0.3732]
[1744330111171,6.58197,1519.3,1519.1,3.4832408]
[1744330111478,6.58155,1519.4,1519.1,3.0]
[1744330111809,13.16336,1519.4,1519.1,4.711439]
[1744330112313,13.16252,1519.5,1519.1,11.294119]
[1744330112537,6.57985,1519.8,1519.3,3.0]
[1744330112809,6.57985,1519.8,1519.5,3.0]
[1744330113114,6.58133,1519.5,1519.2,6.4332]
[1744330113417,6.58133,1519.5,1519.3,3.0]
[1744330113611,6.58154,1519.4,1519.2,6.4332]
[1744330114333,6.58075,1519.6,1519.3,3.0]
[1744330114508,13.15985,1519.8,1519.5,3.0]
[1744330114816,13.15993,1519.8,1519.5,3.0]
[1744330115115,6.5803,1519.7,1519.5,3.0]
[1744330115278,7.38375,1519.9,1519.5,6.58084]
[1744330115479,6.57945,1519.9,1519.6,1.031284]
[1744330115678,6.57945,1519.9,1519.6,0.3732]
[1744330115980,13.15906,1519.9,1519.6,0.3732]
[1744330116615,6.57984,1519.8,1519.6,0.3732]
[1744330116817,6.57945,1519.9,1519.6,3.3732]
[1744330117012,6.57945,1519.9,1519.6,4.41843333]
[1744330117210,6.579,1520.0,1519.7,3.0]
[1744330117788,6.57858,1520.1,1519.8,3.0]
[1744330118210,13.15739,1520.1,1519.8,3.0]
[1744330120131,6.5791,1520.0,1519.7,3.0]
[1744330120426,6.5791,1520.0,1519.7,11.33820533]
[1744330120796,13.15839,1520.0,1519.7,4.75797533]
[1744330121015,6.5791,1520.0,1519.7,4.75797533]
[1744330121214,6.5791,1520.0,1519.7,11.33821533]
[1744330121837,6.57859,1520.1,1519.7,11.33806533]
[1744330122011,6.57859,1520.1,1519.8,1.13380653]
[1744330122219,13.15638,1520.2,1519.9,3.0]
[1744330122738,13.15744,1520.1,1519.8,4.13380653]
[1744330123115,6.57909,1520.0,1519.8,1.13380653]
[1744330123311,13.15826,1520.0,1519.9,0.17634124]
[1744330123516,13.15826,1520.0,1519.7,3.0]
[1744330123717,6.57909,1520.0,1519.8,0.17634124]
[1744330124019,6.5786,1520.1,1519.8,0.17634124]
[1744330124343,6.57815,1520.2,1519.9,3.0]
[1744330124545,6.57815,1520.2,1519.9,3.97559812]
[1744330124908,6.57815,1520.2,1520.0,0.17634124]
[1744330126046,0.8043,1520.3,1520.1,6.57851]
[1744330126207,0.1,1520.4,1520.2,3.0]
[1744330126534,0.1,1520.4,1520.3,0.17634124]
[1744330126757,0.1,1520.4,1520.3,7.42940536]
[1744330127054,0.1,1520.4,1520.3,7.80260536]
[1744330128159,0.1,1520.4,1520.3,8.29658486]
[1744330128964,0.1,1520.4,1520.3,0.67032074]
[1744330129321,0.1,1520.4,1520.3,7.24796074]
[1744330131161,0.1,1520.4,1520.3,0.67032074]
[1744330132664,6.67721,1520.4,1520.3,0.67032074]
[1744330133551,7.47651,1520.4,1520.3,0.17634124]
[1744330133863,13.15578,1520.3,1519.9,15.13695812]
[1744330134073,6.57788,1520.3,1519.9,15.13695812]
[1744330134236,6.57788,1520.3,1520.0,3.0]
[1744330134237,13.15575,1520.3,1520.0,3.0]
[1744330134568,6.57851,1520.1,1520.0,0.48126153]
[1744330134743,0.8993,1520.4,1519.9,8.18459812]
[1744330134945,0.8993,1520.4,1520.1,6.57831]
[1744330135432,7.47657,1520.4,1520.1,6.57831]
[1744330135662,14.05404,1520.4,1520.1,3.0]
[1744330136125,0.8993,1520.4,1519.7,0.3732]
[1744330136327,0.828,1520.0,1519.7,6.5801]
[1744330136550,6.57938,1519.9,1519.8,3.0]
[1744330136754,6.57902,1520.0,1519.5,0.3732]
[1744330136937,6.58067,1519.6,1519.3,6.95503]
[1744330137123,6.58169,1519.4,1519.1,2.084639]
[1744330137326,0.828,1519.6,1519.1,4.711439]
[1744330137327,7.40873,1519.6,1519.1,4.711439]
[1744330137560,6.58173,1519.4,1519.0,6.58312]
[1744330137761,2.226901,1519.6,1519.0,3.0]
[1744330137984,0.55,1519.4,1518.9,0.50041417]
[1744330138165,6.58371,1518.9,1518.8,0.01694014]
[1744330138538,7.41171,1518.9,1518.8,0.01694014]
[1744330138843,9.361208,1518.9,1518.8,0.01694014]
[1744330139435,0.828,1518.7,1518.1,18.41451098]
[1744330139673,7.41474,1518.2,1518.1,18.41451098]
[1744330139879,0.828,1518.2,1518.1,18.41451098]
[1744330140247,7.41474,1518.2,1518.1,18.41451098]
[1744330140454,6.58648,1518.3,1518.1,18.41451098]
[1744330140647,6.58674,1518.2,1518.1,18.41451098]
[1744330140970,7.41347,1518.5,1518.1,18.41451098]
[1744330141173,6.58615,1518.4,1518.1,18.41451098]
[1744330141547,6.58659,1518.3,1518.1,18.41451098]
[1744330141966,6.58589,1518.4,1518.1,18.41451098]
[1744330142283,6.58589,1518.4,1518.1,3.0]
[1744330142594,6.58545,1518.5,1518.1,9.587]
[1744330143072,7.41216,1518.8,1518.3,3.0]
[1744330143073,6.58462,1518.7,1518.3,3.0]
[1744330143392,7.41216,1518.8,1518.3,9.58603]
[1744330143554,6.5846,1518.7,1518.3,9.58603]
[1744330143750,0.828,1518.8,1518.5,6.58543]
[1744330144058,7.41088,1519.1,1518.6,9.58479]
[1744330144263,2.290388,1519.1,1518.7,6.58449]
[1744330145192,2.290388,1519.1,1518.7,6.58438]
[1744330145352,7.40963,1519.4,1519.0,9.58325]
[1744330145559,9.75721057,1519.6,1519.3,6.58172]
[1744330145755,16.33808057,1519.6,1519.2,6.58237]
[1744330145955,6.5814,1519.5,1519.1,9.58273]
[1744330146289,6.5814,1519.5,1519.1,3.0]
[1744330146495,6.5814,1519.5,1519.2,3.0]
[1744330147109,17.97169863,1519.6,1519.2,9.58233]
[1744330147322,17.97169863,1519.6,1519.1,3.0]
[1744330147323,6.58155,1519.4,1519.1,3.0]
[1744330147497,6.58152,1519.5,1519.1,9.58267]
[1744330147686,8.84082803,1519.5,1519.1,9.58267]
[1744330147880,6.5817,1519.4,1519.1,3.0]